Workbook

Sheet 1
A1: Школа | B1: МБОУ Лицей №188 | E1: Отд./корп | I1: День | J1: 17.02.2023
A3: Прием пищи | B3: Раздел | C3: № рец. | D3: Блюдо | E3: Выход, г | F3: Цена | G3: Калорийность | H3: Белки | I3: Жиры | J3: Углеводы
A4: Завтрак | B4: ='[1]13-18 фев.'!B37 -> гор.блюдо | C4: ='[1]13-18 фев.'!C37 -> ТТК 2022 г | D4: ='[1]13-18 фев.'!D37 -> Картофель тушеный с фаршем | E4: ='[1]13-18 фев.'!E37 -> 180 | G4: ='[1]13-18 фев.'!G37 -> 290.00 | H4: ='[1]13-18 фев.'!H37 -> 13.38 | I4: ='[1]13-18 фев.'!I37 -> 15.24 | J4: ='[1]13-18 фев.'!J37 -> 24.71
B5: ='[1]13-18 фев.'!B38 -> гор.напиток | C5: ='[1]13-18 фев.'!C38 -> ТТК 2021г | D5: ='[1]13-18 фев.'!D38 -> Чай с сахаром, лимолном | E5: ='[1]13-18 фев.'!E38 -> 213 | G5: ='[1]13-18 фев.'!G38 -> 34.00 | H5: ='[1]13-18 фев.'!H38 -> 0.06 | I5: ='[1]13-18 фев.'!I38 -> 0.01 | J5: ='[1]13-18 фев.'!J38 -> 8.13
B6: ='[1]13-18 фев.'!B39 -> хлеб | D6: ='[1]13-18 фев.'!D39 -> Хлеб ржано-пшеничный | E6: ='[1]13-18 фев.'!E39 -> 20 | G6: ='[1]13-18 фев.'!G39 -> 44.00 | H6: ='[1]13-18 фев.'!H39 -> 1.00 | I6: ='[1]13-18 фев.'!I39 -> 0.20 | J6: ='[1]13-18 фев.'!J39 -> 9.00
B7: ='[1]13-18 фев.'!B40 -> хлеб | D7: ='[1]13-18 фев.'!D40 -> Хлеб пшеничный | E7: ='[1]13-18 фев.'!E40 -> 15 | G7: ='[1]13-18 фев.'!G40 -> 35.00 | H7: ='[1]13-18 фев.'!H40 -> 1.14 | I7: ='[1]13-18 фев.'!I40 -> 0.12 | J7: ='[1]13-18 фев.'!J40 -> 7.38
B8: ='[1]13-18 фев.'!B41 -> закуска | C8: ='[1]13-18 фев.'!C41 -> ТТК | D8: ='[1]13-18 фев.'!D41 -> Салат из квашенной капусты (без лука) | E8: ='[1]13-18 фев.'!E41 -> 60 | G8: ='[1]13-18 фев.'!G41 -> 51.00 | H8: ='[1]13-18 фев.'!H41 -> 0.98 | I8: ='[1]13-18 фев.'!I41 -> 3.05 | J8: ='[1]13-18 фев.'!J41 -> 4.63
B9: ='[1]13-18 фев.'!B42 -> печенье | D9: ='[1]13-18 фев.'!D42 -> Печенье | E9: ='[1]13-18 фев.'!E42 -> 15 | G9: ='[1]13-18 фев.'!G42 -> 67.00 | H9: ='[1]13-18 фев.'!H42 -> 1.03 | I9: ='[1]13-18 фев.'!I42 -> 2.07 | J9: ='[1]13-18 фев.'!J42 -> 11.11
A12: ИТОГО | E12: ='[1]13-18 фев.'!E43 -> 503 | F12: ='[1]13-18 фев.'!F43 -> 62.10 | G12: ='[1]13-18 фев.'!G43 -> 521 | H12: ='[1]13-18 фев.'!H43 -> 17.59 | I12: ='[1]13-18 фев.'!I43 -> 20.69 | J12: ='[1]13-18 фев.'!J43 -> 64.96
